[Event "*** SCC Grand Prix: Titled Tuesday Blitz"]
[Site "Chess.com"]
[Date "2020.07.07"]
[Round "2"]
[White "Bastiandash"]
[Black "GelmanAlexander"]
[Result "1-0"]
[WhiteElo "2323"]
[BlackElo "2541"]
[TimeControl "180+1"]
[EndTime "10:19:34 PDT"]
[Termination "Bastiandash won by resignation"]

1. d4 {[%clk 0:03:00.9]} 1... Nf6 {[%clk 0:02:59.9]} 2. Nf3 {[%clk 0:03:01.1]}
2... c5 {[%clk 0:03:00]} 3. c3 {[%clk 0:03:01.1]} 3... b6 {[%clk 0:02:59.1]} 4.
Bg5 {[%clk 0:03:00.1]} 4... e6 {[%clk 0:02:56.2]} 5. e3 {[%clk 0:02:56.2]} 5...
Bb7 {[%clk 0:02:56.2]} 6. Bd3 {[%clk 0:02:44.7]} 6... h6 {[%clk 0:02:56.6]} 7.
Bh4 {[%clk 0:02:39.3]} 7... d6 {[%clk 0:02:56.9]} 8. Nbd2 {[%clk 0:02:38.7]}
8... Nbd7 {[%clk 0:02:56.9]} 9. O-O {[%clk 0:02:39.2]} 9... g5 {[%clk 0:02:57]}
10. Bg3 {[%clk 0:02:39]} 10... Rg8 {[%clk 0:02:42.9]} 11. e4 {[%clk 0:02:29.5]}
11... h5 {[%clk 0:02:29.5]} 12. e5 {[%clk 0:02:14.6]} 12... h4 {[%clk
0:01:45.2]} 13. exf6 {[%clk 0:01:30.3]} 13... hxg3 {[%clk 0:01:33.2]} 14. fxg3
{[%clk 0:01:26.8]} 14... Qc7 {[%clk 0:01:20.2]} 15. Qe2 {[%clk 0:01:19.6]} 15...
g4 {[%clk 0:01:13]} 16. Nh4 {[%clk 0:01:09.1]} 16... Bh6 {[%clk 0:01:13.2]} 17.
Rad1 {[%clk 0:00:56]} 17... O-O-O {[%clk 0:01:08.8]} 18. Ba6 {[%clk 0:00:54.3]}
18... Bg5 {[%clk 0:01:04.1]} 19. Bxb7+ {[%clk 0:00:47]} 19... Kxb7 {[%clk
0:00:56.5]} 20. Qxg4 {[%clk 0:00:40.3]} 20... d5 {[%clk 0:00:55.4]} 21. Qe2
{[%clk 0:00:29.9]} 21... Nxf6 {[%clk 0:00:45.2]} 22. Nhf3 {[%clk 0:00:21.9]}
22... Bxd2 {[%clk 0:00:44.2]} 23. Nxd2 {[%clk 0:00:20.5]} 23... Ng4 {[%clk
0:00:39.8]} 24. h3 {[%clk 0:00:18.1]} 24... Nh6 {[%clk 0:00:37.2]} 25. g4 {[%clk
0:00:15.6]} 25... Rg6 {[%clk 0:00:32]} 26. Nf3 {[%clk 0:00:12.3]} 26... f5
{[%clk 0:00:23.2]} 27. Ne5 {[%clk 0:00:11.9]} 27... Rg7 {[%clk 0:00:23.1]} 28.
gxf5 {[%clk 0:00:06.8]} 28... Nxf5 {[%clk 0:00:22.1]} 29. Rf3 {[%clk 0:00:04.8]}
29... Rdg8 {[%clk 0:00:21]} 30. g4 {[%clk 0:00:03.4]} 30... Qe7 {[%clk
0:00:17.8]} 31. Kh2 {[%clk 0:00:03.8]} 31... Nh4 {[%clk 0:00:16.8]} 32. Rg3
{[%clk 0:00:02.9]} 32... Nf5 {[%clk 0:00:16.2]} 33. Rf3 {[%clk 0:00:02.8]} 33...
Qh4 {[%clk 0:00:15.2]} 34. Qb5 {[%clk 0:00:02.3]} 34... Rc7 {[%clk 0:00:08.9]}
35. gxf5 {[%clk 0:00:02.4]} 35... Qe4 {[%clk 0:00:07.9]} 36. Qf1 {[%clk
0:00:02]} 36... Rcg7 {[%clk 0:00:06.9]} 37. Re1 {[%clk 0:00:02.5]} 37... Rg2+
{[%clk 0:00:05.9]} 38. Qxg2 {[%clk 0:00:02.4]} 38... Rxg2+ {[%clk 0:00:05.4]}
39. Kxg2 {[%clk 0:00:03.3]} 39... Qxe1 {[%clk 0:00:06]} 40. f6 {[%clk
0:00:03.9]} 40... Qd2+ {[%clk 0:00:05.3]} 41. Rf2 {[%clk 0:00:04.2]} 41... Qg5+
{[%clk 0:00:05.5]} 42. Ng4 {[%clk 0:00:04.1]} 42... Qg8 {[%clk 0:00:04.4]} 43.
f7 {[%clk 0:00:04.5]} 43... Qf8 {[%clk 0:00:04.9]} 44. Ne5 {[%clk 0:00:04.9]}
44... Kc7 {[%clk 0:00:04.2]} 45. Ng6 {[%clk 0:00:05.1]} 45... Qg7 {[%clk
0:00:04.6]} 46. f8=Q {[%clk 0:00:06]} 46... Qxg6+ {[%clk 0:00:05]} 47. Kh1
{[%clk 0:00:06.2]} 47... Qe4+ {[%clk 0:00:05.2]} 48. Kg1 {[%clk 0:00:06.1]}
48... Qe1+ {[%clk 0:00:05.5]} 49. Kh2 {[%clk 0:00:06.2]} 49... Kc6 {[%clk
0:00:04]} 50. Qf4 {[%clk 0:00:06.4]} 50... Kb5 {[%clk 0:00:04.9]} 51. dxc5
{[%clk 0:00:06.6]} 51... bxc5 {[%clk 0:00:05]} 52. a4+ {[%clk 0:00:07.5]} 52...
Kc6 {[%clk 0:00:05.3]} 53. Qf6 {[%clk 0:00:06.5]} 53... Qe4 {[%clk 0:00:05.1]}
54. Qf3 {[%clk 0:00:06.4]} 54... Qe5+ {[%clk 0:00:05.1]} 55. Qg3 {[%clk
0:00:06.4]} 55... Qe4 {[%clk 0:00:05.1]} 56. h4 {[%clk 0:00:06.8]} 56... c4
{[%clk 0:00:04.9]} 57. h5 {[%clk 0:00:07]} 57... Qh7 {[%clk 0:00:04.9]} 58. Qg6
{[%clk 0:00:07]} 58... Qc7+ {[%clk 0:00:05.2]} 59. Kg2 {[%clk 0:00:05.8]} 59...
Qe5 {[%clk 0:00:05.8]} 60. h6 {[%clk 0:00:05.2]} 60... Qe4+ {[%clk 0:00:06.3]}
61. Qxe4 {[%clk 0:00:05.3]} 1-0

[Event "*** SCC Grand Prix: Titled Tuesday Blitz"]
[Site "Chess.com"]
[Date "2020.07.07"]
[Round "2"]
[White "Fluffey"]
[Black "CyberdelChess"]
[Result "1-0"]
[WhiteElo "2457"]
[BlackElo "2251"]
[TimeControl "180+1"]
[EndTime "10:19:34 PDT"]
[Termination "Fluffey won on time"]

1. e4 {[%clk 0:03:00.9]} 1... c5 {[%clk 0:02:59.5]} 2. Nf3 {[%clk 0:03:01]} 2...
d6 {[%clk 0:02:59.8]} 3. d4 {[%clk 0:03:01.2]} 3... cxd4 {[%clk 0:03:00.7]} 4.
Nxd4 {[%clk 0:03:01.8]} 4... Nf6 {[%clk 0:03:01.1]} 5. Nc3 {[%clk 0:03:02.2]}
5... a6 {[%clk 0:03:01.7]} 6. Bc4 {[%clk 0:03:01.6]} 6... e6 {[%clk 0:03:00.6]}
7. Bb3 {[%clk 0:03:01.7]} 7... Nbd7 {[%clk 0:03:00.8]} 8. Be3 {[%clk 0:03:01.9]}
8... Nc5 {[%clk 0:03:01]} 9. f3 {[%clk 0:03:02.2]} 9... Be7 {[%clk 0:02:55.1]}
10. Qd2 {[%clk 0:03:02]} 10... Qc7 {[%clk 0:02:53]} 11. a3 {[%clk 0:02:59.4]}
11... b5 {[%clk 0:02:50]} 12. Ba2 {[%clk 0:02:59.3]} 12... O-O {[%clk
0:02:45.2]} 13. O-O-O {[%clk 0:02:56.9]} 13... Rb8 {[%clk 0:02:42.5]} 14. g4
{[%clk 0:02:52.5]} 14... Bd7 {[%clk 0:02:32.8]} 15. h4 {[%clk 0:02:51.1]} 15...
a5 {[%clk 0:02:31.9]} 16. h5 {[%clk 0:01:26.3]} 16... b4 {[%clk 0:02:31.4]} 17.
axb4 {[%clk 0:01:26]} 17... axb4 {[%clk 0:02:29.3]} 18. Nb1 {[%clk 0:01:25.9]}
18... b3 {[%clk 0:02:15]} 19. Nxb3 {[%clk 0:01:25.2]} 19... Nxb3+ {[%clk
0:02:14.5]} 20. Bxb3 {[%clk 0:01:25.2]} 20... Rxb3 {[%clk 0:02:14.9]} 21. g5
{[%clk 0:01:23.8]} 21... Nxe4 {[%clk 0:01:56.5]} 22. fxe4 {[%clk 0:01:23.3]}
22... Rxe3 {[%clk 0:01:57.2]} 23. Qxe3 {[%clk 0:01:20.5]} 23... Rc8 {[%clk
0:01:52.2]} 24. Rd2 {[%clk 0:01:06.7]} 24... Bc6 {[%clk 0:01:41.4]} 25. g6
{[%clk 0:01:03.1]} 25... hxg6 {[%clk 0:01:30.4]} 26. hxg6 {[%clk 0:01:02.3]}
26... fxg6 {[%clk 0:01:30.7]} 27. Qh3 {[%clk 0:00:58.7]} 27... Kf7 {[%clk
0:01:26.5]} 28. Rf1+ {[%clk 0:00:57.1]} 28... Bf6 {[%clk 0:01:26.7]} 29. e5
{[%clk 0:00:54.2]} 29... dxe5 {[%clk 0:01:26.2]} 30. Nc3 {[%clk 0:00:49]} 30...
Qa7 {[%clk 0:01:18.2]} 31. Rd6 {[%clk 0:00:34.7]} 31... Qe7 {[%clk 0:00:30.8]}
32. Qd3 {[%clk 0:00:26.3]} 32... Kg8 {[%clk 0:00:29]} 33. Qxg6 {[%clk 0:00:21]}
33... Bg5+ {[%clk 0:00:19.9]} 34. Kb1 {[%clk 0:00:14.9]} 34... Qxd6 {[%clk
0:00:19.1]} 35. Qxg5 {[%clk 0:00:15.4]} 35... Rb8 {[%clk 0:00:15]} 36. Qg6
{[%clk 0:00:10.2]} 36... Be8 {[%clk 0:00:11.7]} 37. Qg3 {[%clk 0:00:06.1]} 37...
Qb4 {[%clk 0:00:10]} 38. b3 {[%clk 0:00:05]} 38... Qd4 {[%clk 0:00:09.3]} 39.
Rg1 {[%clk 0:00:04.9]} 39... Rb7 {[%clk 0:00:07]} 40. Rd1 {[%clk 0:00:03.9]}
40... Qf4 {[%clk 0:00:04.3]} 41. Qxf4 {[%clk 0:00:03.6]} 41... exf4 {[%clk
0:00:05.2]} 42. Ne4 {[%clk 0:00:02.8]} 42... Kf8 {[%clk 0:00:03.7]} 43. Nd6
{[%clk 0:00:03]} 43... Rd7 {[%clk 0:00:04.1]} 44. c4 {[%clk 0:00:03.6]} 44...
Ke7 {[%clk 0:00:04]} 45. c5 {[%clk 0:00:04.5]} 45... g5 {[%clk 0:00:02.7]} 46.
b4 {[%clk 0:00:05.1]} 46... Bg6+ {[%clk 0:00:03.2]} 47. Kb2 {[%clk 0:00:05.1]}
47... e5 {[%clk 0:00:04.1]} 48. Re1 {[%clk 0:00:05.7]} 48... Kf6 {[%clk
0:00:03.8]} 49. Nc4 {[%clk 0:00:05.8]} 49... Kf5 {[%clk 0:00:03.7]} 50. Nxe5
{[%clk 0:00:05.8]} 50... Re7 {[%clk 0:00:03.3]} 51. Nf3 {[%clk 0:00:06.4]} 51...
Rxe1 {[%clk 0:00:03.3]} 52. Nxe1 {[%clk 0:00:07.3]} 52... g4 {[%clk 0:00:04]}
53. c6 {[%clk 0:00:07.4]} 53... g3 {[%clk 0:00:04.9]} 54. c7 {[%clk 0:00:07.8]}
54... Bh5 {[%clk 0:00:03.4]} 55. c8=Q+ {[%clk 0:00:07.6]} 55... Kg5 {[%clk
0:00:03.3]} 56. Qc5+ {[%clk 0:00:07.6]} 56... Kh4 {[%clk 0:00:04.2]} 57. Ng2+
{[%clk 0:00:07.7]} 57... Kg4 {[%clk 0:00:04.2]} 58. Nxf4 {[%clk 0:00:07.5]}
58... Kxf4 {[%clk 0:00:05.1]} 59. Qxh5 {[%clk 0:00:07.4]} 59... g2 {[%clk
0:00:05.3]} 60. Qh2+ {[%clk 0:00:06.3]} 60... Kf3 {[%clk 0:00:06.2]} 61. Qg1
{[%clk 0:00:07]} 61... Kg3 {[%clk 0:00:06.5]} 62. b5 {[%clk 0:00:07.9]} 1-0

[Event "*** SCC Grand Prix: Titled Tuesday Blitz"]
[Site "Chess.com"]
[Date "2020.07.07"]
[Round "2"]
[White "ChessicallyInclined"]
[Black "DeviatkinAndrey"]
[Result "0-1"]
[WhiteElo "2491"]
[BlackElo "2719"]
[TimeControl "180+1"]
[EndTime "10:19:35 PDT"]
[Termination "DeviatkinAndrey won on time"]

1. d4 {[%clk 0:03:00.9]} 1... d5 {[%clk 0:02:59.4]} 2. c4 {[%clk 0:03:00.9]}
2... c6 {[%clk 0:02:59.8]} 3. Nf3 {[%clk 0:03:00.2]} 3... Nf6 {[%clk 0:02:59.9]}
4. e3 {[%clk 0:03:00.6]} 4... Bf5 {[%clk 0:02:59.7]} 5. Nc3 {[%clk 0:02:58.6]}
5... e6 {[%clk 0:03:00]} 6. Nh4 {[%clk 0:02:58.4]} 6... Be4 {[%clk 0:03:00.1]}
7. f3 {[%clk 0:02:58.4]} 7... Bg6 {[%clk 0:03:00]} 8. Qb3 {[%clk 0:02:58.8]}
8... Qb6 {[%clk 0:02:59.6]} 9. Bd2 {[%clk 0:02:54]} 9... Nbd7 {[%clk 0:02:58.3]}
10. g3 {[%clk 0:02:48.3]} 10... Qxb3 {[%clk 0:02:56.5]} 11. axb3 {[%clk
0:02:47.8]} 11... Bc2 {[%clk 0:02:56.6]} 12. c5 {[%clk 0:02:26.3]} 12... Bxb3
{[%clk 0:02:55.6]} 13. f4 {[%clk 0:02:24.7]} 13... a6 {[%clk 0:02:43]} 14. Bd3
{[%clk 0:02:18.2]} 14... Be7 {[%clk 0:02:36.3]} 15. Ra3 {[%clk 0:02:08.3]} 15...
Bc4 {[%clk 0:02:32.8]} 16. Bxc4 {[%clk 0:02:07.6]} 16... dxc4 {[%clk 0:02:33]}
17. Ra4 {[%clk 0:01:59]} 17... Nd5 {[%clk 0:02:12]} 18. Nf3 {[%clk 0:01:55.5]}
18... f5 {[%clk 0:01:47]} 19. Rxc4 {[%clk 0:01:50.2]} 19... Kf7 {[%clk
0:01:29.8]} 20. Ke2 {[%clk 0:01:40.7]} 20... Rag8 {[%clk 0:01:24.9]} 21. h4
{[%clk 0:01:27.9]} 21... g6 {[%clk 0:01:13.9]} 22. Ng5+ {[%clk 0:01:19.6]} 22...
Bxg5 {[%clk 0:01:10.8]} 23. hxg5 {[%clk 0:01:20.5]} 23... h6 {[%clk 0:01:09.5]}
24. gxh6 {[%clk 0:01:17.1]} 24... Rh7 {[%clk 0:01:02.7]} 25. Kf3 {[%clk
0:01:06.1]} 25... N7f6 {[%clk 0:01:02.1]} 26. e4 {[%clk 0:00:51.6]} 26... Nxc3
{[%clk 0:00:56.8]} 27. bxc3 {[%clk 0:00:45]} 27... Nxe4 {[%clk 0:00:54.3]} 28.
Be3 {[%clk 0:00:39.1]} 28... Rgh8 {[%clk 0:00:37.3]} 29. Rb4 {[%clk 0:00:35.7]}
29... Rxh6 {[%clk 0:00:37]} 30. Rxb7+ {[%clk 0:00:35.4]} 30... Kf6 {[%clk
0:00:36.8]} 31. Rxh6 {[%clk 0:00:30.5]} 31... Rxh6 {[%clk 0:00:36.6]} 32. c4
{[%clk 0:00:24.9]} 32... Rh3 {[%clk 0:00:33.4]} 33. Bf2 {[%clk 0:00:22.9]} 33...
Rh2 {[%clk 0:00:24.8]} 34. Be1 {[%clk 0:00:21.5]} 34... g5 {[%clk 0:00:24.4]}
35. Rb6 {[%clk 0:00:16]} 35... g4+ {[%clk 0:00:23.5]} 36. Ke3 {[%clk 0:00:16.2]}
36... Rh1 {[%clk 0:00:23.8]} 37. Ba5 {[%clk 0:00:15.8]} 37... Ra1 {[%clk
0:00:21.6]} 38. Rxa6 {[%clk 0:00:15.2]} 38... Ra3+ {[%clk 0:00:20.8]} 39. Ke2
{[%clk 0:00:15.6]} 39... Nxg3+ {[%clk 0:00:20.5]} 40. Kd1 {[%clk 0:00:13.5]}
40... Kf7 {[%clk 0:00:09.8]} 41. Ra7+ {[%clk 0:00:12.2]} 41... Kg6 {[%clk
0:00:10]} 42. Bb6 {[%clk 0:00:12.2]} 42... Rd3+ {[%clk 0:00:08.2]} 43. Ke1
{[%clk 0:00:10.8]} 43... Rxd4 {[%clk 0:00:08.6]} 44. Rc7 {[%clk 0:00:10.8]}
44... Rxc4 {[%clk 0:00:05.7]} 45. Rxc6 {[%clk 0:00:10.9]} 45... Rxf4 {[%clk
0:00:05]} 46. Rxe6+ {[%clk 0:00:10.9]} 46... Kf7 {[%clk 0:00:05.3]} 47. Rd6
{[%clk 0:00:10.1]} 47... Rc4 {[%clk 0:00:05]} 48. c6 {[%clk 0:00:09.2]} 48...
Ne4 {[%clk 0:00:05.2]} 49. Rd7+ {[%clk 0:00:09.5]} 49... Ke6 {[%clk 0:00:05]}
50. Rc7 {[%clk 0:00:06.3]} 50... g3 {[%clk 0:00:04.7]} 51. Rc8 {[%clk
0:00:04.9]} 51... Rc1+ {[%clk 0:00:04.1]} 52. Ke2 {[%clk 0:00:04.8]} 52... g2
{[%clk 0:00:03.8]} 53. c7 {[%clk 0:00:04.8]} 53... g1=Q {[%clk 0:00:02.2]} 54.
Bxg1 {[%clk 0:00:04.4]} 54... Kd7 {[%clk 0:00:01.8]} 55. Rb8 {[%clk 0:00:01.8]}
55... Kxc7 {[%clk 0:00:01.9]} 56. Ba7 {[%clk 0:00:02.3]} 56... Kc6 {[%clk
0:00:02]} 57. Rb6+ {[%clk 0:00:02.5]} 57... Kd5 {[%clk 0:00:01.9]} 58. Rb5+
{[%clk 0:00:03]} 58... Kc4 {[%clk 0:00:01.5]} 59. Rxf5 {[%clk 0:00:02.7]} 59...
Nc3+ {[%clk 0:00:01.6]} 0-1

[Event "*** SCC Grand Prix: Titled Tuesday Blitz"]
[Site "Chess.com"]
[Date "2020.07.07"]
[Round "2"]
[White "Kopytkin"]
[Black "annamaja"]
[Result "1-0"]
[WhiteElo "2456"]
[BlackElo "2247"]
[TimeControl "180+1"]
[EndTime "10:19:36 PDT"]
[Termination "Kopytkin won by resignation"]

1. e4 {[%clk 0:03:00.9]} 1... e6 {[%clk 0:02:59.9]} 2. d4 {[%clk 0:03:00.9]}
2... d5 {[%clk 0:03:00]} 3. e5 {[%clk 0:03:01.2]} 3... c5 {[%clk 0:03:00]} 4. c3
{[%clk 0:03:01.7]} 4... Nc6 {[%clk 0:03:00.4]} 5. Nf3 {[%clk 0:03:02.3]} 5...
Qb6 {[%clk 0:03:00.7]} 6. a3 {[%clk 0:03:02.8]} 6... Bd7 {[%clk 0:03:00]} 7. b4
{[%clk 0:02:55.2]} 7... cxd4 {[%clk 0:03:00.2]} 8. cxd4 {[%clk 0:02:55.4]} 8...
Nge7 {[%clk 0:02:59.2]} 9. Nc3 {[%clk 0:02:53.7]} 9... Nf5 {[%clk 0:02:58.3]}
10. Na4 {[%clk 0:02:53.8]} 10... Qc7 {[%clk 0:02:54.7]} 11. g4 {[%clk
0:02:48.8]} 11... Nh6 {[%clk 0:02:51.4]} 12. h3 {[%clk 0:02:47.6]} 12... Ng8
{[%clk 0:02:17.4]} 13. Bd3 {[%clk 0:02:37]} 13... h5 {[%clk 0:02:16]} 14. Rg1
{[%clk 0:02:34.5]} 14... hxg4 {[%clk 0:02:15.7]} 15. hxg4 {[%clk 0:02:34.8]}
15... Nge7 {[%clk 0:01:58.9]} 16. Be3 {[%clk 0:02:32.5]} 16... Rc8 {[%clk
0:01:34.5]} 17. Rc1 {[%clk 0:02:30.7]} 17... Qb8 {[%clk 0:01:34.8]} 18. Nc5
{[%clk 0:02:28.8]} 18... a5 {[%clk 0:01:18]} 19. b5 {[%clk 0:02:11.4]} 19... Na7
{[%clk 0:01:18.2]} 20. a4 {[%clk 0:02:11.1]} 20... b6 {[%clk 0:01:02.4]} 21. Na6
{[%clk 0:02:09.1]} 21... Qb7 {[%clk 0:01:02.8]} 22. Ke2 {[%clk 0:02:01.9]} 22...
Ng6 {[%clk 0:00:50.9]} 23. Rxc8+ {[%clk 0:02:00.7]} 23... Qxc8 {[%clk
0:00:49.9]} 24. Qc1 {[%clk 0:02:00.8]} 24... Nh4 {[%clk 0:00:44.5]} 25. Nxh4
{[%clk 0:01:24.5]} 25... Rxh4 {[%clk 0:00:45.4]} 26. Bg5 {[%clk 0:01:24.4]}
26... Be7 {[%clk 0:00:28.3]} 27. Bxh4 {[%clk 0:00:25.1]} 27... Bxh4 {[%clk
0:00:29.2]} 28. Rh1 {[%clk 0:00:19.9]} 28... Qxc1 {[%clk 0:00:15.7]} 29. Rxc1
{[%clk 0:00:20.8]} 29... Kd8 {[%clk 0:00:14.5]} 30. Nb8 {[%clk 0:00:20]} 30...
Bg5 {[%clk 0:00:06.6]} 31. Rc2 {[%clk 0:00:19.1]} 31... Be8 {[%clk 0:00:04.2]}
32. Kf3 {[%clk 0:00:19.2]} 32... Nc8 {[%clk 0:00:02.9]} 33. Nc6+ {[%clk
0:00:17.3]} 33... Kd7 {[%clk 0:00:03.4]} 34. Kg3 {[%clk 0:00:16.4]} 34... Bh6
{[%clk 0:00:02.5]} 35. f4 {[%clk 0:00:16.4]} 35... f6 {[%clk 0:00:03]} 36. Rh2
{[%clk 0:00:14.3]} 36... fxe5 {[%clk 0:00:02.8]} 37. Nxe5+ {[%clk 0:00:14]}
37... Kd6 {[%clk 0:00:02.7]} 38. g5 {[%clk 0:00:14.4]} 38... Ne7 {[%clk
0:00:03.4]} 39. gxh6 {[%clk 0:00:14.3]} 39... gxh6 {[%clk 0:00:03.8]} 40. Rxh6
{[%clk 0:00:13.7]} 40... Ng8 {[%clk 0:00:02.9]} 41. Rh8 {[%clk 0:00:13]} 41...
Nf6 {[%clk 0:00:03.4]} 42. Kf3 {[%clk 0:00:12.6]} 42... Ke7 {[%clk 0:00:02.9]}
43. Rh1 {[%clk 0:00:11.1]} 43... Kd6 {[%clk 0:00:03.3]} 44. Rc1 {[%clk
0:00:11.1]} 44... Bh5+ {[%clk 0:00:03.7]} 45. Ke3 {[%clk 0:00:10.6]} 45... Be8
{[%clk 0:00:04]} 46. Nc6 {[%clk 0:00:09.9]} 46... Ng4+ {[%clk 0:00:03.8]} 47.
Kf3 {[%clk 0:00:09.5]} 47... Nf6 {[%clk 0:00:04.7]} 48. Ne5 {[%clk 0:00:09.8]}
48... Bh5+ {[%clk 0:00:05.4]} 49. Kg3 {[%clk 0:00:09.3]} 49... Be8 {[%clk
0:00:06.3]} 50. Bg6 {[%clk 0:00:09.4]} 50... Bxg6 {[%clk 0:00:05.6]} 51. Nxg6
{[%clk 0:00:09.7]} 51... Ne4+ {[%clk 0:00:06.5]} 52. Kf3 {[%clk 0:00:09.6]}
52... Nd2+ {[%clk 0:00:06.9]} 53. Ke2 {[%clk 0:00:08.6]} 53... Nb3 {[%clk
0:00:07]} 54. Rd1 {[%clk 0:00:05.9]} 54... Kd7 {[%clk 0:00:05]} 55. Ne5+ {[%clk
0:00:06]} 55... Kd6 {[%clk 0:00:05.1]} 56. Ke3 {[%clk 0:00:05.1]} 56... Ke7
{[%clk 0:00:04.6]} 57. Rb1 {[%clk 0:00:04.9]} 57... Kf6 {[%clk 0:00:03]} 58.
Rxb3 {[%clk 0:00:04.6]} 58... Kf5 {[%clk 0:00:03.9]} 59. Rc3 {[%clk 0:00:05]}
59... Kf6 {[%clk 0:00:04.8]} 60. Rc6 {[%clk 0:00:05.5]} 60... Kf5 {[%clk
0:00:05.7]} 61. Rxb6 {[%clk 0:00:06]} 61... Kf6 {[%clk 0:00:06.6]} 62. Ra6
{[%clk 0:00:06.5]} 62... Kf5 {[%clk 0:00:07.5]} 63. Rxa5 {[%clk 0:00:07]} 1-0

[Event "*** SCC Grand Prix: Titled Tuesday Blitz"]
[Site "Chess.com"]
[Date "2020.07.07"]
[Round "2"]
[White "tapu2"]
[Black "LedakovAlexandr"]
[Result "0-1"]
[WhiteElo "2666"]
[BlackElo "2488"]
[TimeControl "180+1"]
[EndTime "10:19:38 PDT"]
[Termination "LedakovAlexandr won by resignation"]

1. c4 {[%clk 0:02:59.6]} 1... Nc6 {[%clk 0:02:46]} 2. g3 {[%clk 0:02:52.6]} 2...
d6 {[%clk 0:02:43.8]} 3. Bg2 {[%clk 0:02:52.1]} 3... g6 {[%clk 0:02:44.2]} 4. d4
{[%clk 0:02:48.9]} 4... Bg7 {[%clk 0:02:44.5]} 5. Nf3 {[%clk 0:02:49]} 5... Bg4
{[%clk 0:02:38.6]} 6. d5 {[%clk 0:02:44]} 6... Bxf3 {[%clk 0:02:35.9]} 7. exf3
{[%clk 0:02:42.3]} 7... Nb8 {[%clk 0:02:31.6]} 8. O-O {[%clk 0:02:41.8]} 8...
Nf6 {[%clk 0:02:31.6]} 9. Nc3 {[%clk 0:02:41.4]} 9... O-O {[%clk 0:02:30.7]} 10.
f4 {[%clk 0:02:41.7]} 10... c6 {[%clk 0:01:15.9]} 11. Be3 {[%clk 0:02:06.6]}
11... Re8 {[%clk 0:01:14.3]} 12. Qd2 {[%clk 0:02:05.2]} 12... Ng4 {[%clk
0:00:55.8]} 13. Bd4 {[%clk 0:02:00.3]} 13... Bxd4 {[%clk 0:00:55.7]} 14. Qxd4
{[%clk 0:02:00.8]} 14... Qb6 {[%clk 0:00:56.2]} 15. Qxb6 {[%clk 0:01:56]} 15...
axb6 {[%clk 0:00:55.9]} 16. Rfe1 {[%clk 0:01:55.4]} 16... Kf8 {[%clk 0:00:54.5]}
17. Rad1 {[%clk 0:01:51]} 17... Nf6 {[%clk 0:00:53.2]} 18. a3 {[%clk 0:01:21.9]}
18... Rc8 {[%clk 0:00:48.7]} 19. Re3 {[%clk 0:01:01.1]} 19... Rc7 {[%clk
0:00:45.9]} 20. Rde1 {[%clk 0:00:53.8]} 20... Ra7 {[%clk 0:00:38.4]} 21. h3
{[%clk 0:00:47.4]} 21... h5 {[%clk 0:00:37.7]} 22. Bf3 {[%clk 0:00:46.8]} 22...
Na6 {[%clk 0:00:17.5]} 23. g4 {[%clk 0:00:42.3]} 23... hxg4 {[%clk 0:00:16.8]}
24. hxg4 {[%clk 0:00:43.2]} 24... Ne8 {[%clk 0:00:08.9]} 25. Kg2 {[%clk
0:00:40]} 25... Nc5 {[%clk 0:00:07]} 26. b4 {[%clk 0:00:39.3]} 26... Na4 {[%clk
0:00:05.4]} 27. Ne4 {[%clk 0:00:23.7]} 27... cxd5 {[%clk 0:00:04.5]} 28. cxd5
{[%clk 0:00:24.6]} 28... b5 {[%clk 0:00:04.8]} 29. Be2 {[%clk 0:00:23.2]} 29...
Nb6 {[%clk 0:00:04.6]} 30. Bxb5 {[%clk 0:00:22.6]} 30... Nf6 {[%clk 0:00:04.7]}
31. Nxf6 {[%clk 0:00:22.4]} 31... exf6 {[%clk 0:00:05.6]} 32. Re8+ {[%clk
0:00:22.5]} 32... Kg7 {[%clk 0:00:06.2]} 33. Rh1 {[%clk 0:00:22.7]} 33... Nxd5
{[%clk 0:00:04.2]} 34. Reh8 {[%clk 0:00:20.2]} 34... Nxf4+ {[%clk 0:00:03.4]}
35. Kf3 {[%clk 0:00:20.2]} 35... g5 {[%clk 0:00:03.1]} 36. R1h7+ {[%clk
0:00:19.6]} 36... Kg6 {[%clk 0:00:03.4]} 37. Rh6+ {[%clk 0:00:17.2]} 37... Kg7
{[%clk 0:00:02.6]} 38. Rh1 {[%clk 0:00:15.2]} 38... Rxa3+ {[%clk 0:00:02.1]} 39.
Ke4 {[%clk 0:00:15.6]} 39... Rcc3 {[%clk 0:00:01.6]} 40. Rd8 {[%clk 0:00:14.4]}
40... Rcb3 {[%clk 0:00:01.5]} 41. Kd4 {[%clk 0:00:10.3]} 41... Rxb4+ {[%clk
0:00:01.7]} 42. Bc4 {[%clk 0:00:10.8]} 42... d5 {[%clk 0:00:02.1]} 43. Rxd5
{[%clk 0:00:06.8]} 43... Rxc4+ {[%clk 0:00:03]} 44. Kxc4 {[%clk 0:00:07]} 44...
Nxd5 {[%clk 0:00:03.9]} 45. Kxd5 {[%clk 0:00:07.9]} 45... Rf3 {[%clk 0:00:04.7]}
46. Kd6 {[%clk 0:00:08.8]} 46... Rxf2 {[%clk 0:00:04.9]} 47. Kc7 {[%clk
0:00:09.7]} 47... Rf4 {[%clk 0:00:05.7]} 48. Kxb7 {[%clk 0:00:10]} 48... Rxg4
{[%clk 0:00:04.7]} 49. Kc6 {[%clk 0:00:10.9]} 49... Re4 {[%clk 0:00:04.7]} 50.
Kd5 {[%clk 0:00:11.8]} 50... Re6 {[%clk 0:00:05.6]} 51. Rg1 {[%clk 0:00:11.6]}
51... Kg6 {[%clk 0:00:05.4]} 52. Rg2 {[%clk 0:00:12]} 52... f5 {[%clk
0:00:05.6]} 53. Rg1 {[%clk 0:00:12.9]} 53... f4 {[%clk 0:00:06]} 54. Rg2 {[%clk
0:00:13]} 54... Kf5 {[%clk 0:00:06.3]} 55. Rf2 {[%clk 0:00:13.2]} 55... g4
{[%clk 0:00:06.2]} 56. Rf1 {[%clk 0:00:13.1]} 56... f3 {[%clk 0:00:06.4]} 0-1